Cogmind - Beta 15 @@@ ROGUE MODE // 2025.10.07 @ 19:17:49 Player: DietSnapple Result: Destroyed by YI-UF0 with YI-UF0's Doublenader Performance ------------- Evolutions (1) 500 Regions Visited (4) 800 Robots Destroyed (60) 300 Value Destroyed (1205) 1205 Prototype IDs (3) 60 Alien Tech Used (0) 0 Bonus (0) 0 TOTAL SCORE: 2865 Bonus ------- None Cogmind --------- Core Integrity 0/400 Matter 163/300 Energy 60/100 System Corruption 0% Temperature Cool (0) Movement Core (450) Ox8 Location -9/Mines Parts ------- > --- POWER (1) -------- (None) > --- PROPULSION (3) --- (None) > --- UTILITY (3) ------ Large Storage Unit Improved Signal Interpreter Hardlight Generator > --- WEAPON (2) ------- (None) > --- INVENTORY (15) --- Recoil Stabilizer Hacking Suite Hacking Suite Hacking Suite Improved Light Cannon Mining Laser Peak State ------------ > --- POWER ------------ Ion Engine > --- PROPULSION ------- Light Treads Light Treads Light Treads > --- UTILITY ---------- Large Storage Unit Improved Signal Interpreter Medium Armor Plating > --- WEAPON ----------- Heavy Battle Rifle Improved Light Cannon > --- INVENTORY -------- Light Ion Engine Compact Wheel High-capacity Storage Unit Large Battery Medium Armor Plating Hardlight Generator Hardlight Generator Hacking Suite Improved Light Cannon Grenade Launcher Grenade Launcher Rocket Launcher Mining Laser [Rating: 18] Favorites ----------- Power Ion Engine Engine Ion Engine Propulsion Light Treads Treads Light Treads Wheel Compact Wheel Utility Large Storage Unit Device Heat Sink Storage Large Storage Unit Processor Improved Signal Interpreter Protection Medium Armor Plating Weapon Improved Light Cannon Energy Gun Medium Laser Ballistic Gun Heavy Battle Rifle Ballistic Cannon Improved Light Cannon Launcher Grenade Launcher Build | -11 -10 -10 -9 -9 ------- Run | Yrd Mat Min Mat Min Slots Evolved 2 | . . . 2 . Power . | . . . . . Propulsion 1 | . . . 1 . Utility 1 | . . . 1 . Weapon . | . . . . . Parts Attached 36 | 7 7 1 15 6 Power 5 | 1 2 . 1 1 Engine 5 | 1 2 . 1 1 Core . | . . . . . Reactor . | . . . . . Propulsion 8 | 2 2 . 4 . Treads 5 | . 1 . 4 . Leg . | . . . . . Wheel 3 | 2 1 . . . Hover . | . . . . . Flight . | . . . . . Utility 13 | 1 3 1 6 2 Device 3 | . 1 . . 2 Storage 3 | 1 2 . . . Processor 4 | . . 1 3 . Hackware . | . . . . . Protection 3 | . . . 3 . Artifact . | . . . . . Weapon 10 | 3 . . 4 3 Energy Gun 3 | 2 . . 1 . Energy Cannon . | . . . . . Ballistic Gun 2 | 1 . . 1 . Ballistic Cannon 2 | . . . 2 . Launcher 3 | . . . . 3 Special Weapon . | . . . . . Impact Weapon . | . . . . . Slashing Weapon . | . . . . . Piercing Weapon . | . . . . . Special Melee Weapon . | . . . . . Unidentified Prototypes 1 | . . . 1 . Parts Lost 19 | . 3 . 5 11 Power 4 | . 1 . 1 2 Propulsion 7 | . 1 . 2 4 Utility 3 | . . . 1 2 Weapon 5 | . 1 . 1 3 Highest Loss Streak 11 | . 2 . 3 11 To Critical Strikes . | . . . . . Average Backups 11 | 2 7 12 13 13 Power 1 | . 1 2 1 . Propulsion 1 | 1 2 2 1 . Utility 5 | . 1 3 6 7 Weapon 3 | . 2 4 4 3 Tool/Special . | . . . . . Unused Backups 12 | . . . 5 7 Power 1 | . . . 1 . Propulsion . | . . . . . Utility 9 | . . . 3 6 Weapon 2 | . . . 1 1 Tool/Special . | . . . . . Average Slot Usage (%) 90 | . 84 84 92 95 Engine 11 | . 13 14 10 11 Treads 17 | . . . 26 30 Wheel 9 | . 27 28 . . Device 2 | . 9 . . . Storage 12 | . 14 14 11 11 Processor 8 | . . 12 10 11 Protection 6 | . . . 10 9 Energy Gun 4 | . 15 . . . Ballistic Gun 8 | . 4 14 11 . Ballistic Cannon 7 | . . . 10 17 Peak Build Rating 18 | 6 8 7 18 17 Average Rating 12 | 4 6 6 16 16 On Entrance 7 | . 6 7 7 17 Naked Turns . | . . . . . Heaviest Build 88 | 14 88 27 42 42 Greatest Support 60 | 26 26 26 60 60 Greatest Overweight (x) 26 | 1 26 1 1 1 Average Overweight (x) . | . 1 . . . Largest Inventory Capacity 25 | 8 25 15 15 15 Average Capacity 15 | 6 17 15 15 15 Most Carried 15 | 4 10 13 15 15 Average Carried 11 | 2 7 12 13 13 Final Capacity 15 | 8 15 15 15 15 Final Carried 14 | 4 10 13 14 6 Class Distribution -------------------- 93% | Mutant 6% | Scavenger-Mutant Dominant Class ---------------- Mutant | -10/Materials Mutant | -10/Mines Mutant | -9/Materials Mutant | -9/Mines Resources | -11 -10 -10 -9 -9 ----------- Run | Yrd Mat Min Mat Min Matter Collected 1355 | 230 175 34 860 56 Remotely . | . . . . . Salvage Created 1438 | . 382 30 990 36 Parts 107 | . 28 3 71 5 Haulers Intercepted 2 | . . . 2 . Recyclers Shooed 2 | . 2 . . . Parts Field Recycled . | . . . . . Retrieved Matter . | . . . . . Parts Self-Destructed . | . . . . . Prevented . | . . . . . Kills | -11 -10 -10 -9 -9 ------- Run | Yrd Mat Min Mat Min Combat Hostiles Destroyed 42 | . 10 . 28 4 Guns 27 | . 10 . 17 . Cannons 14 | . . . 11 3 AOE 1 | . . . . 1 Classes Destroyed 12 | . 5 1 5 1 Worker 4 | . . . 4 . Builder 1 | . . . 1 . Tunneler 2 | . . 1 1 . Hauler 2 | . . . 2 . Recycler 1 | . 1 . . . Operator 5 | . 1 . 4 . Watcher 4 | . 1 . 3 . Swarmer 19 | . 6 . 10 3 Grunt 16 | . 4 . 12 . Brawler 1 | . . . 1 . Sentry 5 | . . . 5 . Assembled 1 | . . . . 1 Best Kill Streak 12 | . 3 1 12 3 Combat Bots Only 7 | . 3 . 7 3 Max Kills in Single Turn 2 | . 1 1 2 1 Gunslinging 1 | . . . 1 . Exploded 1 | . . . . 1 Melee . | . . . . . Uniques/NPCs Destroyed . | . . . . . Combat | -11 -10 -10 -9 -9 -------- Run | Yrd Mat Min Mat Min Hostile Shots Fired 284 | . 65 . 164 55 Missed 86 | . 22 . 49 15 Hits 198 | . 43 . 115 40 Projectile 198 | . 43 . 115 40 AOE 26 | . . . . 26 Part Disruptions 1 | . . . . 1 Damage Taken 2650 | . 418 13 1165 1054 Core 525 | . 115 . 122 288 Absorbed by Shields . | . . . . . Regen/Repaired (Parts) 7 | . . . 7 . Core Remaining (%) 77 | 100 . 54 . . Volleys Fired 198 | . 60 1 122 15 Largest 2 | . 2 1 2 2 Hottest 100 | . 100 20 66 66 Shots Fired 355 | . 84 1 244 26 Gun 244 | . 84 1 159 . Cannon 99 | . . . 85 14 Launcher 12 | . . . . 12 Special . | . . . . . Kinetic 271 | . 12 1 244 14 Thermal 72 | . 72 . . . Explosive 12 | . . . . 12 Electromagnetic . | . . . . . Robot Hit Streak 8 | . 6 1 8 4 Robot Miss Streak 7 | . 5 . 7 2 Penetration Max . | . . . . . Secondary Targets 4 | . 1 . 3 . Max Gunslinging Chain 1 | . 1 . 1 . Shots Hit Robots 194 | . 50 1 135 8 Core Hits 79 | . 23 1 49 6 Critical Kills . | . . . . . Critical Parts Destroyed 2 | . . . 2 . Critical Strikes 5 | . 2 . 3 . Burn 2 | . 2 . . . Destroy 2 | . . . 2 . Blast 1 | . . . 1 . Melee Attacks . | . . . . . Impact . | . . . . . Slashing . | . . . . . Piercing . | . . . . . Sneak Attacks . | . . . . . Combat Hostiles . | . . . . . Follow-up Attacks . | . . . . . Damage Inflicted 3689 | . 652 35 2712 290 Guns 2327 | . 636 9 1682 . Cannons 1235 | . . . 1024 211 Explosions 79 | . . . . 79 Melee . | . . . . . Ramming 48 | . 16 26 6 . Kinetic 2997 | . 71 9 2706 211 Thermal 565 | . 565 . . . Explosive 79 | . . . . 79 Electromagnetic . | . . . . . Impact . | . . . . . Slashing . | . . . . . Piercing . | . . . . . Highest Corruption 2 | . 2 2 . . Average Corruption 2 | . 2 2 . . Corruption Purged . | . . . . . Corruption Blocked . | . . . . . Effects 15 | . 14 1 . . Message Errors 4 | . 4 . . . Matter Fused 2 | . 2 . . . Heat Flow Errors 3 | . 2 1 . . Energy Discharges 1 | . 1 . . . Parts Rejected 1 | . 1 . . . Parts Fused 1 | . 1 . . . Data Loss (minor) 2 | . 2 . . . Misfires 1 | . 1 . . . Overload Shots . | . . . . . Overflow Damage 34 | . . . 30 4 Projectiles 34 | . . . 30 4 Explosions . | . . . . . Melee . | . . . . . Knockbacks 9 | . . . 7 2 Impact . | . . . . . Kinetic 8 | . . . 6 2 Secondary 1 | . . . 1 . Self-Inflicted Damage 48 | . 7 13 . 28 Shots 1 | . . . . 1 Rammed 4 | . 2 1 1 . Targets Rammed 4 | . 2 1 1 . Kicked . | . . . . . Crushed . | . . . . . Highest Temperature 155 | . 155 80 90 63 Average Temperature 25 | . 42 50 19 24 Received Heat Transfer 496 | . 99 . 357 40 Siege Activations . | . . . . . Martial Activations . | . . . . . Shielding Activations . | . . . . . Robots Disrupted . | . . . . . Combat Hostiles . | . . . . . Robots Corrupted . | . . . . . Combat Hostiles . | . . . . . Parts Fried . | . . . . . Impact Corruptions . | . . . . . Robots Melted . | . . . . . Combat Hostiles . | . . . . . Parts Melted 4 | . 4 . . . Heat Transferred 1813 | . 1813 . . . Parts Sabotaged . | . . . . . Parts Stolen . | . . . . . Parts Stripped . | . . . . . Power Chain Reactions . | . . . . . Alert | -11 -10 -10 -9 -9 ------- Run | Yrd Mat Min Mat Min Maximum Alert Level 1 | . . . 1 . Low Security (%) 79 | 100 100 100 62 100 Level 1 20 | . . . 37 . Level 2 . | . . . . . Level 3 . | . . . . . Level 4 . | . . . . . Level 5 . | . . . . . High Security . | . . . . . Max Security . | . . . . . Peak Influence 298 | . 93 5 298 93 Initial 93 | . . . . 93 Average 86 | . 24 . 137 43 Influence Increases 1293 | . 335 5 859 94 Destroy 0b10 Robot/C 820 | . 200 . 560 60 Destroy 0b10 Robot/NC 95 | . 15 5 75 . Destroy Leader 192 | . 42 . 150 . Successful Hack 27 | . 17 . 10 . Disable Machine 30 | . . . 30 . Destroy Structure 54 | . 1 . 19 34 Lose Combat Pursuer 75 | . 60 . 15 . Influence Decreases 1293 | . 334 6 620 333 Entered New Map 147 | . . 1 . 146 Time Decay 1048 | . 323 5 570 150 Lost Part 98 | . 11 . 50 37 Squads Dispatched 6 | . 1 . 5 . Investigation 2 | . 1 . 1 . Extermination . | . . . . . Reinforcement 4 | . . . 4 . Assault . | . . . . . Garrison . | . . . . . Intercept . | . . . . . Searches Triggered . | . . . . . Construction Impeded . | . . . . . Haulers Reinforced . | . . . . . Active Scanning Responses . | . . . . . Cargo Convoy Interrupts . | . . . . . Stealth | -11 -10 -10 -9 -9 --------- Run | Yrd Mat Min Mat Min Distress Signals 6 | . 2 . 4 . Communications Jammed . | . . . . . Distress Signals . | . . . . . Times Spotted 92 | . 25 . 46 21 Peak Tracking Total 12 | . 4 . 7 12 Tactical Retreats 4 | . 3 . 1 . Traps | -11 -10 -10 -9 -9 ------- Run | Yrd Mat Min Mat Min Traps Triggered 2 | . 2 . . . Indirectly . | . . . . . Trap Hack Attempts . | . . . . . Triggered . | . . . . . Disarmed . | . . . . . Reprogrammed . | . . . . . Reused . | . . . . . Traps Extracted . | . . . . . Installed . | . . . . . Triggered . | . . . . . Machines | -11 -10 -10 -9 -9 ---------- Run | Yrd Mat Min Mat Min Machines Disabled 2 | . . . 2 . Max in Single Turn 1 | . . . 1 . Machines Repaired . | . . . . . Machines Dismantled . | . . . . . Machines Sabotaged . | . . . . . Overloaded Fab Kills . | . . . . . Hacking | -11 -10 -10 -9 -9 --------- Run | Yrd Mat Min Mat Min Machines Accessed 8 | . 4 . 4 . Terminals 7 | . 4 . 3 . Fabricators . | . . . . . Repair Stations 1 | . . . 1 . Recycling Units . | . . . . . Scanalyzers . | . . . . . Garrison Access . | . . . . . Total Hacks 30 | . 16 . 14 . Successful 11 | . 5 . 6 . Failed 19 | . 11 . 8 . Catastrophic 2 | . 2 . . . Database Lockouts . | . . . . . Manual 27 | . 16 . 11 . Terminals 27 | . 16 . 11 . Fabricators . | . . . . . Repair Stations 3 | . . . 3 . Recycling Units . | . . . . . Scanalyzers . | . . . . . Garrison Access . | . . . . . Terminal Hacks 3 | . 3 . . . Prototype ID Bank 1 | . 1 . . . Branch Access Points 1 | . 1 . . . Hauler Manifests 1 | . 1 . . . Fabricator Hacks . | . . . . . Repair Station Hacks 2 | . . . 2 . Scan Component 1 | . . . 1 . Repair 1 | . . . 1 . Recycling Unit Hacks . | . . . . . Scanalyzer . | . . . . . Garrison Access Hacks . | . . . . . Unauthorized Hacks 6 | . 2 . 4 . Terminals 6 | . 2 . 4 . Botnet 4 | . 1 . 3 . Operators 2 | . 1 . 1 . Fabricators . | . . . . . Repair Stations . | . . . . . Recycling Units . | . . . . . Scanalyzers . | . . . . . Garrison Access . | . . . . . Data Cores Recovered . | . . . . . Used . | . . . . . Hacking Detections 7 | . 3 . 4 . Full Trace Events 3 | . 2 . 1 . Feedback Events . | . . . . . Feedback Blocked . | . . . . . Robot Schematics Acquired . | . . . . . Robots Built . | . . . . . Authchips . | . . . . . Time . | . . . . . Total Robot Build Rating . | . . . . . Part Schematics Acquired . | . . . . . Parts Built . | . . . . . Authchips . | . . . . . Time . | . . . . . Total Part Build Rating . | . . . . . Parts Repaired 1 | . . . 1 . Time 38 | . . . 38 . Parts Recycled . | . . . . . Recycled Matter . | . . . . . Retrieved Matter . | . . . . . Retrieved Components . | . . . . . Parts Scanalyzed . | . . . . . Part Schematics Acquired . | . . . . . Parts Damaged . | . . . . . Bothacking | -11 -10 -10 -9 -9 ------------ Run | Yrd Mat Min Mat Min Used RIF Installer . | . . . . . Robots Hacked . | . . . . . Non-combat . | . . . . . Combat . | . . . . . Robot Hacks Applied . | . . . . . Relay Couplers Released . | . . . . . Fabnet Peak Effective % . | . . . . . Robots Rewired . | . . . . . Allies Hacked . | . . . . . Hacks Repelled . | . . . . . Allies | -11 -10 -10 -9 -9 -------- Run | Yrd Mat Min Mat Min Total Allies . | . . . . . Largest Group . | . . . . . Highest-Rated Group . | . . . . . Highest-Rated Ally . | . . . . . Total Orders . | . . . . . Ally Attacks . | . . . . . Total Damage . | . . . . . Kills . | . . . . . Allies Corrupted . | . . . . . Allies Melted . | . . . . . Intel | -11 -10 -10 -9 -9 ------- Run | Yrd Mat Min Mat Min Active Infowar (turns) . | . . . . . Robot Analysis Total . | . . . . . Derelict Logs Recovered 1 | . . 1 . . Drone Launches . | . . . . . Drone Recoveries . | . . . . . Exploration | -11 -10 -10 -9 -9 ------------- Run | Yrd Mat Min Mat Min Turns Passed 4053 | 74 1112 284 2248 335 Spaces Moved 2349 | 69 674 305 1117 184 Core 7 | 6 1 . . . Treads 1266 | . . . 1103 163 Legs . | . . . . . Wheels 1076 | 63 673 305 14 21 Hover . | . . . . . Flight . | . . . . . Fastest Speed 50 | 50 90 90 105 115 Average Speed 137 | 86 120 90 160 154 Slowest Speed 1350 | 100 1350 105 240 160 Overloaded Moves . | . . . . . Propulsion Burnouts . | . . . . . Robots Hopped . | . . . . . Potential Cave-ins . | . . . . . Cave-ins Triggered . | . . . . . Exploration Rate (%) 44 | 4 72 51 50 43 Regions Visited 4 Branch Regions 2 Pre-discovered Areas 1 | . . 1 . . Known Exits Taken 3 | . 1 1 1 . Unknown Exits Taken 1 | 1 . . . . Scrap Searched 2 | . . 1 . 1 Spaces Dug . | . . . . . Terrain Destroyed 73 | . . . 18 55 Melee . | . . . . . Projectile 18 | . . . 18 . AOE 55 | . . . . 55 Terrain Rammed . | . . . . . Walls Destroyed . | . . . . . Machines Disabled . | . . . . . Actions | -11 -10 -10 -9 -9 --------- Run | Yrd Mat Min Mat Min Total 2834 | 80 889 313 1342 210 Wait 186 | . 131 . 55 . Move 2345 | 68 673 304 1116 184 Hop . | . . . . . Pick Up 30 | 5 8 3 14 . Fast Attach 19 | 5 6 . 8 . Attach 21 | 1 4 2 7 7 Detach 10 | . 1 2 6 1 Swap 7 | 1 3 . 3 . Drop 14 | . 1 . 10 3 Fire 198 | . 60 1 122 15 Melee . | . . . . . Ram 3 | . 2 1 . . Kick . | . . . . . Crush 1 | . . . 1 . Escape Stasis . | . . . . . Rewire . | . . . . . Trap . | . . . . . Miscellaneous . | . . . . . Route ------- -11/Scrapyard -10/Materials (discovered 3 exits: *Mat / *Min x2) -10/Mines (discovered 2 exits: *Mat / *Sub) -9/Materials (discovered 2 exits: *Mat / *Min) -9/Mines (discovered 1 exit: *Mat) History --------- Turn | Location | Event 18 | -11/Scrapyard | Discovered new exit (range 14) 75 | -11/Scrapyard | Entered Materials 304 | -10/Materials | Build established: Mutant 778 | -10/Materials | Discovered new exit (range 7) 1005 | -10/Materials | Discovered new exit (range 12) 1066 | -10/Materials | Discovered new exit (range 16) 1168 | -10/Materials | Identified exit to Mines 1187 | -10/Materials | Entered Mines 1194 | -10/Mines | Received a Rocket Launcher from a helpful Derelict 1194 | -10/Mines | Learned location of Zion (-6) 1354 | -10/Mines | A weapon hastily lodged in a ceiling crevice suddenly fell to the ground 1365 | -10/Mines | Discovered new exit (range 8) 1391 | -10/Mines | Identified exit to Materials 1420 | -10/Mines | Discovered new exit (range 3) 1422 | -10/Mines | Identified exit to Subcaves 1471 | -10/Mines | Entered Materials 1471 | -9/Materials | Evolved 2 slots: Propulsion x1, Utility x1 1765 | -9/Materials | Destroyed 7 combat bots 2403 | -9/Materials | Repaired Hacking Suite 2736 | -9/Materials | Discovered new exit (range 13) 2936 | -9/Materials | Identified exit to Mines 3078 | -9/Materials | Lost 3 parts (1p1u1w) 3280 | -9/Materials | Discovered new exit (range 16) 3485 | -9/Materials | Identified exit to Materials 3719 | -9/Materials | Entered Mines 3879 | -9/Mines | Discovered exit to Materials (range 13) 3970 | -9/Mines | Assembled infested the area 3975 | -9/Mines | Assisted by a Guerilla fighting off Assembled 4020 | -9/Mines | Core integrity fell below 50% 4053 | -9/Mines | Core integrity fell below 20% 4054 | -9/Mines | Destroyed by YI-UF0 with YI-UF0's Doublenader Last Messages --------------- 04024_ D-53 Grenadier destroyed. 04026_ The unstable cave ceiling collapses. 04026_ U-05 Engineer lays Concrete. 04028_ YI-UF0 mumbles something. 04028_ The unstable cave ceiling collapses. 04028_ U-05 Engineer lays Concrete. 04030_ The unstable cave ceiling collapses. 04030_ U-05 Engineer lays Concrete. 04031_ The unstable cave ceiling collapses. 04031_ U-05 Engineer destroyed. 04032_ The unstable cave ceiling collapses. 04044_ Hardlight Generator destroyed. 04045_ YI-UF0 mumbles something. 04046_ The unstable cave ceiling collapses. 04050_ Imp. Ion Engine destroyed. 04051_ The unstable cave ceiling collapses. 04052_ Rocket Launcher destroyed. 04053_ Dropped Hcp. Storage Unit. 04054_ Dropped Lrg. Battery. 04054_ Com. Wheel destroyed. Map ----- +----------------------------------------------------+ | ???# ?????# #?????????????????? | | ???# #?????# #?????????????????? | | ???# #??#??## #?????????????????? | | ???# #??# ### #?????????????????? | | ???#! #??# #?????????????????? | | ???#% #??#### #?????????????????? | | ???# ####### ##???????????###### | | ???#= = % % #########??? | | ???#%=* ## ##?? ? | | ???############ ### #### | | ??????????????# | | ??????????????## | | ???????????????### ## | | ?????????????????####### ## | | ???????????????????????# ####%! | | ???????????????????????# ####|% | | ???????????????????????#### * | | ?????????????????????????## | | ???????????#####?##??????# | | ?????????### ### #?????## # # | | ????????## #?????# | | ????????# ! ###???# ## # | | ???????## !! #?## # | | ???????# # # # | | ????????# | | ????????# @! g # | | ????????# # | | ????????# ####### | | ????????# ##??????# | | ????????#########???????## " | | ?????????????????????????######## | | ?????????????????????????????????# | | ??????????????????????????????????### | | ????????????????????????????????????? | | ????????????????????????????????????? | | | | | | | | | | | | | | | | | | | | | | | | | | | | | | | +----------------------------------------------------+ Best States ------------- Heat Dissipation 35 Energy Generation 12 Energy Capacity 265 Matter Stores 300 Matter Capacity 300 Sight Range 16 Terrain Scan Density 10 Armor Coverage 225 Evasion (%) 44 Recoil Reduction 3 Item Schematics ----------------- None Robot Schematics ------------------ None Fabricated ------------ Nothing Repaired ---------- Hacking Suite | 30% | -9/Materials Alien Tech Used ----------------- None Achievements -------------- None Challenges ------------ None Game ------ Seed ColdNavigationHarness Manual? 0 Play Time 00:27:37 Cumulative 19.1 hours Start 2025.10.07 @ 18:51:24 End 2025.10.07 @ 19:17:49 Sessions 1 Manual Loads 0 Difficulty Rogue Special Mode None Game No. 57 Rogue 50 Adventurer 7 Explorer 0 Win Type - Total 0 Types 0/0/0/0/0/0/0/0/0/0 Lore% 4 Gallery% 19 Achievement% 19 Wizard Run 0 Options --------- Layout 0 ASCII 0 Keyboard 1 Movement Vi Keybinds 0 Fullscreen 1 Font 18/SmallcapsGlow Map View 112x50 Zoom Use 1% Tactical HUD 1 Map Filters NONE Filters NONE Steam 1 RUN: 40349fde-ccd3-4b5c-b67b-ddcacd4ca8ac